bitfinex/quotes_BTCUSD_20241001
["timestamp","ask_amount","ask_price","bid_price","bid_amount"]
[1727773081622,0.725507,64066.0,64065.0,0.49347034]
[1727773083182,0.725507,64066.0,64065.0,0.49342627]
[1727773083612,0.569418,64066.0,64065.0,0.49342627]
[1727773084316,0.725507,64066.0,64065.0,0.49342627]
[1727773085230,0.725507,64066.0,64065.0,0.46999094]
[1727773086579,0.78330277,64066.0,64065.0,0.46943893]
[1727773086813,0.78330277,64066.0,64065.0,0.16519165]
[1727773087047,0.78330277,64066.0,64065.0,0.15490885]
[1727773087272,1.04876057,64066.0,64065.0,0.005296]
[1727773088179,1.04876057,64066.0,64065.0,0.003296]
[1727773088405,1.05076057,64066.0,64065.0,0.003296]
[1727773088638,1.04876057,64066.0,64065.0,0.003296]
[1727773088874,1.04876057,64066.0,64061.0,0.001646]
[1727773088875,0.264498,64062.0,64061.0,0.001646]
[1727773089089,1.00734952,64062.0,64061.0,0.001646]
[1727773090736,1.00934952,64062.0,64061.0,0.002646]
[1727773091618,1.1434752,64062.0,64061.0,0.002646]
[1727773095092,1.02535148,64062.0,64061.0,0.002646]
[1727773095325,1.03382047,64062.0,64061.0,0.002646]
[1727773095988,1.04820136,64062.0,64061.0,0.002646]
[1727773097072,0.93007764,64062.0,64061.0,0.002646]
[1727773097301,0.92807764,64062.0,64061.0,0.001646]
[1727773097514,1.04620136,64062.0,64061.0,0.001646]
[1727773097728,1.04820136,64062.0,64061.0,0.002646]
[1727773117236,0.156108,64058.0,64057.0,0.31542393]
[1727773117438,0.89895952,64058.0,64057.0,0.09112206]
[1727773117650,0.89895952,64058.0,64057.0,0.08]
[1727773118811,0.90095952,64058.0,64057.0,0.08]
[1727773122266,0.7828358,64058.0,64057.0,0.08]
[1727773122493,0.90095952,64058.0,64057.0,0.08]
[1727773122715,0.90095952,64058.0,64057.0,0.09112206]
[1727773122936,0.90095952,64058.0,64057.0,0.08]
[1727773123156,0.90095952,64058.0,64057.0,0.09127562]
[1727773123411,0.90095952,64058.0,64057.0,0.01127562]
[1727773123644,0.156115,64056.0,64053.0,0.08225201]
[1727773123877,0.11812372,64054.0,64053.0,0.0817]
[1727773124114,0.58639372,64054.0,64053.0,0.0817]
[1727773125471,0.58639372,64054.0,64053.0,0.0827]
[1727773125708,0.58639372,64054.0,64053.0,0.0837]
[1727773126191,0.58639372,64054.0,64053.0,0.09403632]
[1727773126424,0.58639372,64054.0,64053.0,0.09703632]
[1727773127579,0.58639372,64054.0,64053.0,0.09758833]
[1727773128071,0.58639372,64054.0,64053.0,0.09923633]
[1727773128809,0.46827,64054.0,64053.0,0.35875633]
[1727773129293,0.46827,64054.0,64053.0,0.75611406]
[1727773129529,0.46827,64054.0,64053.0,0.66244335]
[1727773130014,0.46827,64054.0,64053.0,1.24395729]
[1727773130246,0.46827,64054.0,64053.0,1.2273292]
[1727773130476,0.46827,64054.0,64053.0,1.24395761]
[1727773130700,0.46827,64054.0,64053.0,1.08682313]
[1727773130965,0.46827,64054.0,64053.0,1.08382313]
[1727773131204,0.46827,64054.0,64053.0,1.08682313]
[1727773131456,0.46827,64054.0,64053.0,1.23534527]
[1727773131686,0.46827,64054.0,64053.0,1.09482313]
[1727773131917,0.46827,64054.0,64053.0,1.23534523]
[1727773132145,0.46827,64054.0,64053.0,1.23134523]
[1727773132379,0.46827,64054.0,64053.0,1.24034734]
[1727773133060,0.46827,64054.0,64053.0,1.09982313]
[1727773133316,0.46827,64054.0,64053.0,1.25628093]
[1727773133590,0.46827,64054.0,64053.0,1.27289311]
[1727773133795,0.46827,64054.0,64053.0,1.2728931]
[1727773134235,0.46827,64054.0,64053.0,1.5803591]
[1727773134455,0.46827,64054.0,64053.0,1.58225546]
[1727773134668,0.46827,64054.0,64053.0,1.58025546]
[1727773135303,0.46827,64054.0,64053.0,1.3728931]
[1727773135534,0.46827,64054.0,64053.0,1.3748931]
[1727773135962,0.46827,64054.0,64053.0,1.3728931]
[1727773137055,0.46827,64054.0,64053.0,1.3728828]
[1727773137278,0.46827,64054.0,64053.0,1.3748828]
[1727773137628,0.46827,64054.0,64053.0,1.3728828]
[1727773137831,0.46827,64054.0,64053.0,1.3748828]
[1727773139623,0.46827,64054.0,64053.0,1.3728828]
[1727773140677,0.46827,64054.0,64053.0,1.49100652]
[1727773140883,0.46827,64054.0,64053.0,1.47440465]
[1727773141342,0.46827,64054.0,64053.0,1.49098271]
[1727773141522,0.46827,64054.0,64053.0,1.47440465]
[1727773142164,0.46827,64054.0,64053.0,1.49298271]
[1727773142374,0.46827,64054.0,64053.0,1.47640465]
[1727773142599,0.46827,64054.0,64053.0,1.49298271]
[1727773142810,0.46827,64054.0,64053.0,1.47640465]
[1727773143023,0.46827,64054.0,64053.0,1.49296079]
[1727773143236,0.46827,64054.0,64053.0,1.47640465]
[1727773144128,0.46827,64054.0,64053.0,1.48140465]
[1727773144356,0.000824,64057.0,64056.0,0.25666501]
[1727773144581,0.23760193,64065.0,64064.0,0.45074501]
[1727773144813,0.23760193,64065.0,64064.0,0.75443203]
[1727773145029,0.000824,64065.0,64064.0,0.76602492]
[1727773146300,0.000824,64065.0,64064.0,0.76702492]
[1727773147139,0.000824,64065.0,64064.0,0.65592492]
[1727773147347,0.000824,64065.0,64064.0,0.65992492]
[1727773147556,0.000824,64065.0,64064.0,0.72999616]
[1727773147764,0.000824,64065.0,64064.0,0.42630914]
[1727773149696,0.000824,64065.0,64064.0,0.3562379]
[1727773154865,0.000824,64065.0,64064.0,0.42629753]
[1727773155955,0.000824,64065.0,64064.0,0.72811284]
[1727773156862,0.000824,64065.0,64064.0,0.82962008]
[1727773159835,0.000824,64065.0,64064.0,0.75955763]
[1727773160527,0.101148,64066.0,64065.0,0.25664301]
[1727773160777,0.101148,64066.0,64065.0,0.64016274]
[1727773161002,0.101148,64066.0,64065.0,0.6517364]
[1727773161884,0.101148,64066.0,64065.0,0.35291667]
[1727773162142,0.101148,64066.0,64065.0,0.65549248]
[1727773162625,0.101148,64066.0,64065.0,0.74891927]
[1727773163361,0.101148,64066.0,64065.0,0.76269347]
[1727773163880,0.101148,64066.0,64065.0,0.76669347]
[1727773164390,0.101148,64066.0,64065.0,0.76269347]
[1727773164635,0.101148,64066.0,64065.0,0.77069347]
[1727773165390,0.101148,64066.0,64065.0,0.77169347]
[1727773165614,0.101148,64066.0,64065.0,0.77069347]
[1727773165837,0.101148,64066.0,64065.0,0.77769347]
[1727773166299,0.101148,64066.0,64065.0,0.7776557]
[1727773166533,0.101148,64066.0,64065.0,0.68422891]
[1727773166945,0.101148,64066.0,64065.0,0.68431903]
[1727773168552,0.101148,64066.0,64065.0,0.80115427]
[1727773169339,0.101148,64066.0,64065.0,0.78441784]
[1727773169760,0.101148,64066.0,64065.0,0.80115257]
[1727773170359,0.101148,64066.0,64065.0,0.68431733]
[1727773172898,0.101148,64066.0,64065.0,0.6675826]
[1727773173110,0.101148,64066.0,64065.0,0.68430929]
[1727773174618,0.101148,64066.0,64065.0,1.2491147]
[1727773175498,0.101148,64066.0,64065.0,1.10891241]
[1727773176152,0.101148,64066.0,64065.0,1.09218572]
[1727773176371,0.101148,64066.0,64065.0,1.10890855]
[1727773179377,0.101148,64066.0,64065.0,1.09218572]
[1727773179588,0.101148,64066.0,64065.0,1.10884053]
[1727773182134,0.101148,64066.0,64065.0,1.11009361]
[1727773183378,0.101148,64066.0,64065.0,1.1101553]
[1727773187002,0.101148,64066.0,64065.0,1.11016608]
[1727773187208,0.101148,64066.0,64065.0,1.1087904]
[1727773187418,0.101148,64066.0,64065.0,1.1104384]
[1727773189176,0.101148,64066.0,64065.0,1.09377281]
[1727773189392,0.101148,64066.0,64065.0,1.11043704]
[1727773192272,0.101148,64066.0,64065.0,1.11048506]
[1727773197989,0.101148,64066.0,64065.0,1.31824157]
[1727773198839,0.101148,64066.0,64065.0,1.01212083]
[1727773200769,0.21927172,64066.0,64065.0,0.33124506]
[1727773200979,0.48276072,64066.0,64065.0,0.33124506]
[1727773201196,0.48276072,64066.0,64065.0,0.33191852]
[1727773201635,0.32667172,64066.0,64065.0,0.33191852]
[1727773202336,0.32667172,64066.0,64065.0,0.48800952]
[1727773202337,0.208548,64066.0,64065.0,0.48800952]
[1727773202548,0.101148,64066.0,64065.0,0.48856153]
[1727773203004,0.101148,64066.0,64065.0,0.33247053]
[1727773204080,0.101148,64066.0,64065.0,0.48856153]
[1727773205836,0.32697172,64066.0,64065.0,0.33243103]
[1727773206940,0.48306072,64066.0,64065.0,0.33187902]
[1727773207166,0.48306072,64066.0,64065.0,0.44906502]
[1727773207433,0.48306072,64066.0,64065.0,0.40218423]
[1727773208344,0.48306072,64066.0,64065.0,0.39418423]
[1727773208587,0.48306072,64066.0,64065.0,0.02022166]
[1727773208830,0.48306072,64066.0,64065.0,0.02422166]
[1727773209334,0.48306072,64066.0,64065.0,0.01722166]
[1727773209567,0.48306072,64066.0,64065.0,0.06507817]
[1727773210072,0.48306072,64066.0,64065.0,0.01822166]
[1727773210073,0.95133072,64066.0,64065.0,0.01822166]
[1727773210338,0.71721072,64066.0,64065.0,0.01822166]
[1727773210605,0.79291072,64066.0,64065.0,0.01822166]
[1727773210816,0.94936852,64066.0,64065.0,0.01722166]
[1727773211062,0.95019252,64066.0,64065.0,0.01722166]
[1727773211297,1.06831624,64066.0,64065.0,0.01722166]
[1727773212027,1.06831624,64066.0,64065.0,0.01322166]
[1727773212531,1.06831624,64066.0,64065.0,0.01422166]
[1727773213037,1.06831624,64066.0,64065.0,0.01322166]
[1727773213305,0.95119252,64066.0,64065.0,0.01322166]
[1727773213584,1.06931624,64066.0,64065.0,0.01322166]
[1727773215102,1.06831624,64066.0,64065.0,0.01322166]
[1727773215370,1.06831624,64066.0,64065.0,0.01422166]
[1727773215859,1.06831624,64066.0,64065.0,0.01322166]
[1727773216362,1.06931624,64066.0,64065.0,0.01322166]
[1727773217534,0.99361624,64066.0,64065.0,0.01322166]
[1727773217799,0.99361624,64066.0,64065.0,0.001648]
[1727773222889,0.99261624,64066.0,64065.0,0.001648]
[1727773223125,0.99361624,64066.0,64065.0,0.002648]
[1727773223613,1.01808581,64066.0,64065.0,0.003648]
[1727773224273,1.01808581,64066.0,64065.0,0.002648]
[1727773224517,1.01708581,64066.0,64065.0,0.001648]
[1727773224803,1.02008581,64066.0,64065.0,0.003648]
[1727773225059,0.90196209,64066.0,64065.0,0.003648]
[1727773225330,1.02008581,64066.0,64065.0,0.003648]
[1727773229851,1.09778581,64066.0,64065.0,0.003648]
[1727773230350,1.07331624,64066.0,64065.0,0.003648]
[1727773230598,0.99561624,64066.0,64065.0,0.003648]
[1727773233269,0.87749252,64066.0,64065.0,0.003648]
[1727773233518,0.99561624,64066.0,64065.0,0.003648]
[1727773234723,1.02008555,64066.0,64065.0,0.003648]
[1727773235673,1.09000599,64066.0,64065.0,0.003648]
[1727773236134,1.02008555,64066.0,64065.0,0.003648]
[1727773242169,1.02153354,64066.0,64065.0,0.003648]
[1727773246770,1.02008555,64066.0,64065.0,0.003648]
[1727773249164,0.99561624,64066.0,64065.0,0.003648]
[1727773252138,1.02008605,64066.0,64065.0,0.003648]
[1727773254812,0.99561624,64066.0,64065.0,0.003648]
[1727773255471,1.02008608,64066.0,64065.0,0.003648]
[1727773256352,1.02153407,64066.0,64065.0,0.003648]
[1727773256581,1.02008608,64066.0,64065.0,0.003648]
[1727773258628,0.80911064,64066.0,64065.0,0.003648]
[1727773258835,0.92723436,64066.0,64065.0,0.003648]
[1727773259053,0.92723436,64066.0,64065.0,0.079948]
[1727773259720,0.90276452,64066.0,64065.0,0.079948]
[1727773262103,0.90276452,64066.0,64065.0,0.003648]
[1727773262325,1.1666113,64066.0,64065.0,0.003648]
[1727773262801,1.19108161,64066.0,64065.0,0.003648]
[1727773263032,1.03463483,64066.0,64065.0,0.003648]
[1727773263292,1.03163483,64066.0,64065.0,0.001648]
[1727773263547,1.04563483,64066.0,64065.0,0.003648]
[1727773263759,1.04863483,64066.0,64065.0,0.003648]
[1727773263981,1.03163483,64066.0,64065.0,0.001648]
[1727773264194,1.04563483,64066.0,64065.0,0.002648]
[1727773264444,1.04863483,64066.0,64065.0,0.003648]
[1727773279924,0.93051111,64066.0,64065.0,0.003648]
[1727773280129,1.04863483,64066.0,64065.0,0.003648]
[1727773288024,1.05008282,64066.0,64065.0,0.003648]
[1727773288486,1.04863483,64066.0,64065.0,0.003648]
[1727773288703,0.00144799,64064.0,64060.0,0.23717793]
[1727773288939,0.27422472,64061.0,64060.0,0.23717793]
[1727773289177,0.89895252,64061.0,64060.0,0.23717793]
[1727773289398,0.89895252,64061.0,64060.0,0.0004]
[1727773290579,0.89895252,64061.0,64060.0,0.1809]
[1727773291049,0.89895252,64061.0,64060.0,0.22881122]
[1727773291489,0.90795252,64061.0,64060.0,0.22881122]
[1727773291933,0.91395252,64061.0,64060.0,0.22981122]
[1727773293038,0.91395252,64061.0,64060.0,0.1829]
[1727773293268,0.91395252,64061.0,64060.0,0.22981122]
[1727773293505,0.91395252,64061.0,64060.0,0.184548]
[1727773296341,0.75749472,64061.0,64060.0,0.184548]
[1727773297773,0.75749472,64061.0,64060.0,0.23145156]
[1727773298031,0.75749472,64061.0,64060.0,0.25491483]
[1727773298274,0.48327,64061.0,64060.0,0.58355352]
[1727773298505,0.48327,64061.0,64060.0,0.48973108]
[1727773299682,0.48327,64061.0,64060.0,0.49028309]
[1727773300394,0.48327,64061.0,64060.0,0.60748849]
[1727773300636,0.48327,64061.0,64060.0,0.60686025]
[1727773300871,0.48327,64061.0,64060.0,0.60646025]
[1727773302336,0.48327,64061.0,64060.0,0.48925628]
[1727773302861,0.48327,64061.0,64060.0,0.60646025]
[1727773303348,0.47727,64061.0,64060.0,0.48825628]
[1727773303587,0.47727,64061.0,64060.0,0.76156325]
[1727773303830,0.48327,64061.0,64060.0,0.60646025]
[1727773304077,0.47427,64061.0,64060.0,0.60417207]
[1727773304304,0.47227,64061.0,64060.0,0.60417207]
[1727773304535,0.47327,64061.0,64060.0,0.60417207]
[1727773304996,0.47627,64061.0,64060.0,0.60417207]
[1727773305235,0.47627,64061.0,64060.0,0.76027507]
[1727773306481,0.47627,64061.0,64060.0,0.64312121]
[1727773307868,0.47587,64061.0,64060.0,0.64312121]
[1727773308339,0.47587,64061.0,64060.0,0.79957901]
[1727773308578,0.47587,64061.0,64060.0,1.36339736]
[1727773308828,0.46887,64061.0,64060.0,1.36339736]
[1727773309277,0.46887,64061.0,64060.0,0.79957901]
[1727773309494,0.46787,64061.0,64060.0,0.79957901]
[1727773309995,0.46787,64061.0,64060.0,0.80257901]
[1727773310262,0.46787,64061.0,64060.0,0.80357901]
[1727773310484,0.46787,64061.0,64060.0,0.79957901]
[1727773310713,0.46887,64061.0,64060.0,0.81057901]
[1727773312282,0.46287,64061.0,64060.0,0.81057901]
[1727773312743,0.46287,64061.0,64060.0,1.35180698]
[1727773312990,0.46287,64061.0,64060.0,1.55938898]
[1727773313220,0.46287,64061.0,64060.0,1.35180698]
[1727773313444,0.46187,64061.0,64060.0,1.54793057]
[1727773313666,0.46187,64061.0,64060.0,1.54792709]
[1727773313893,0.46387,64061.0,64060.0,1.56092709]
[1727773314150,0.46287,64061.0,64060.0,1.55492709]
[1727773314370,0.46287,64061.0,64060.0,1.58892709]
[1727773314826,0.46187,64061.0,64060.0,1.57592709]
[1727773315293,0.46187,64061.0,64060.0,1.36880698]
[1727773315547,0.46287,64061.0,64060.0,1.38180698]
[1727773316422,0.46287,64061.0,64060.0,1.39480698]
[1727773316871,0.46187,64061.0,64060.0,1.36880698]
[1727773317092,0.46187,64061.0,64060.0,1.38280698]
[1727773317334,0.46287,64061.0,64060.0,1.39680698]
[1727773317559,0.46187,64061.0,64060.0,1.38280698]
[1727773317782,0.46287,64061.0,64060.0,1.41112602]
[1727773318039,0.000824,64065.0,64064.0,0.19664501]
[1727773318262,0.00165,64070.0,64069.0,0.28663301]
[1727773318495,0.00165,64070.0,64069.0,1.06505076]
[1727773318731,0.00165,64070.0,64069.0,0.94523273]
[1727773319208,0.00165,64070.0,64069.0,1.04783273]
[1727773319456,0.00165,64070.0,64069.0,1.05783273]
[1727773320818,0.00165,64070.0,64069.0,1.05743373]
[1727773321325,0.00165,64070.0,64069.0,1.07143373]
[1727773321561,0.00165,64070.0,64069.0,1.08543373]
[1727773321806,0.001648,64082.0,64069.0,1.08543373]
[1727773321807,0.23677793,64080.0,64076.0,0.49334073]
[1727773322017,0.23677793,64080.0,64076.0,0.79765893]
[1727773322240,0.001648,64077.0,64076.0,0.94743673]
[1727773322685,0.001648,64077.0,64076.0,1.04065009]
[1727773322903,0.001648,64077.0,64076.0,1.14665009]
[1727773323562,0.001648,64077.0,64076.0,1.05343673]
[1727773323795,0.001648,64077.0,64076.0,1.06743673]
[1727773324035,0.001648,64077.0,64076.0,1.17465009]
[1727773324255,0.001648,64077.0,64076.0,1.08143673]
[1727773324474,0.001648,64077.0,64076.0,1.17457726]
[1727773324694,0.001648,64077.0,64076.0,1.08143673]
[1727773324909,0.001648,64077.0,64076.0,1.11272673]
[1727773325152,0.001648,64077.0,64076.0,1.08472673]
[1727773325642,0.23819393,64088.0,64077.0,0.01055201]
[1727773325867,0.23819393,64088.0,64087.0,0.58501373]
[1727773325868,0.001648,64088.0,64087.0,0.58501373]
[1727773326088,0.001648,64088.0,64087.0,0.79001671]
[1727773326318,0.001648,64088.0,64087.0,0.74347153]
[1727773327724,0.28589693,64100.0,64099.0,0.15656001]
[1727773327725,0.26654493,64100.0,64099.0,0.15656001]
[1727773327948,0.26654493,64100.0,64099.0,0.15056001]
[1727773328167,0.109,64102.0,64100.0,0.156006]
[1727773331224,0.109,64102.0,64100.0,0.159006]
[1727773333248,0.27411072,64108.0,64101.0,0.156003]
[1727773333465,0.27411072,64108.0,64102.0,0.156001]
[1727773334555,0.27411072,64108.0,64100.0,0.312011]
[1727773334556,0.004,64108.0,64103.0,0.39277493]
[1727773334765,0.004,64108.0,64103.0,0.155998]
[1727773334976,0.004,64108.0,64102.0,0.001]
[1727773334977,0.078724,64109.0,64105.0,0.155992]
[1727773335188,0.004,64108.0,64105.0,0.155992]
[1727773335618,0.004,64108.0,64107.0,0.155989]
[1727773335833,0.000824,64109.0,64108.0,0.155986]
[1727773339274,0.000824,64109.0,64108.0,0.156986]
[1727773343148,0.104124,64115.0,64110.0,0.155979]
[1727773344240,0.104124,64115.0,64109.0,0.311966]
[1727773344446,0.104124,64115.0,64110.0,0.155981]
[1727773344680,0.109124,64115.0,64110.0,0.156981]
[1727773345146,0.104124,64115.0,64110.0,0.156981]
[1727773345572,0.109124,64115.0,64110.0,0.156981]
[1727773346007,0.099124,64115.0,64110.0,0.156981]
[1727773346282,0.099124,64115.0,64110.0,0.311959]
[1727773346495,0.099124,64115.0,64111.0,0.155978]
[1727773346736,0.099124,64115.0,64111.0,0.311957]
[1727773346962,0.099124,64115.0,64113.0,0.155972]
[1727773347398,0.049194,64121.0,64118.0,0.155961]
[1727773347620,0.049194,64121.0,64114.0,0.43006372]
[1727773347621,0.049194,64121.0,64116.0,0.311929]
[1727773347871,0.076624,64122.0,64115.0,0.28323669]
[1727773348082,0.076624,64122.0,64118.0,0.15596]
[1727773348305,0.076624,64122.0,64117.0,0.311928]
[1727773348306,0.000824,64127.0,64120.0,0.155955]
[1727773348532,0.000824,64127.0,64117.0,0.311929]
[1727773348533,0.155943,64126.0,64119.0,0.155959]
[1727773349067,0.1112,64125.0,64120.0,0.155957]
[1727773349311,0.002,64122.0,64120.0,0.155957]
[1727773350391,0.1112,64125.0,64120.0,0.155957]
[1727773351687,0.1132,64125.0,64120.0,0.155957]
[1727773354002,0.1132,64125.0,64121.0,0.155954]
[1727773355074,0.1112,64125.0,64121.0,0.155954]
[1727773355288,0.1132,64125.0,64121.0,0.155954]
[1727773355793,0.1132,64125.0,64120.0,0.04645876]
[1727773356220,0.1132,64125.0,64121.0,0.155954]
[1727773356523,0.1132,64125.0,64120.0,0.2024598]
[1727773356734,0.1101,64122.0,64118.0,0.0465038]
[1727773356943,0.1101,64122.0,64117.0,0.28328173]
[1727773357170,0.1101,64122.0,64121.0,0.155955]
[1727773357379,0.002,64125.0,64122.0,0.155952]
[1727773357380,0.1138,64125.0,64122.0,0.155952]
[1727773357596,0.1118,64125.0,64121.0,0.04653199]
[1727773357855,0.46785,64124.0,64123.0,0.20248199]
[1727773358072,0.46785,64124.0,64123.0,0.15595]
[1727773358297,0.46785,64124.0,64123.0,0.44606362]
[1727773358488,0.46785,64124.0,64123.0,0.53912761]
[1727773361102,0.46785,64124.0,64123.0,0.54022829]
[1727773361342,0.46785,64124.0,64123.0,0.54422829]
[1727773361972,0.46785,64124.0,64123.0,0.54022829]
[1727773362185,0.46785,64124.0,64123.0,0.54422829]
[1727773362400,0.46785,64124.0,64123.0,0.45112315]
[1727773362842,0.46785,64124.0,64123.0,0.45012315]
[1727773363052,0.46785,64124.0,64123.0,0.45112315]
[1727773363489,0.46785,64124.0,64123.0,0.44612315]
[1727773363699,0.46785,64124.0,64123.0,0.45312315]
[1727773363970,0.46785,64124.0,64123.0,0.46212315]
[1727773364257,0.69507372,64124.0,64123.0,0.30617315]
[1727773364494,0.69507372,64124.0,64123.0,0.06260818]
[1727773364726,0.69507372,64124.0,64123.0,0.06261042]
[1727773364959,0.85102072,64124.0,64123.0,0.06261042]
[1727773365253,0.57695,64124.0,64123.0,0.016]
[1727773365477,0.57695,64124.0,64123.0,0.06261857]
[1727773365690,0.57695,64124.0,64123.0,0.016]
[1727773365906,0.57695,64124.0,64123.0,0.06261857]
[1727773366336,0.57695,64124.0,64123.0,0.016]
[1727773367597,0.732897,64124.0,64123.0,0.016]
[1727773368512,0.727897,64124.0,64123.0,0.016]
[1727773372213,0.57195,64124.0,64123.0,0.016]
[1727773377262,0.57195,64124.0,64123.0,0.017646]
[1727773378581,0.46285,64124.0,64123.0,0.017646]
[1727773382323,0.46285,64124.0,64123.0,0.06430894]
[1727773382771,0.46285,64124.0,64123.0,0.017646]
[1727773383021,0.57125,64124.0,64123.0,0.017646]
[1727773384443,0.57125,64124.0,64123.0,0.06438371]
[1727773385629,0.57125,64124.0,64123.0,0.017646]
[1727773386567,0.57125,64124.0,64123.0,0.08775257]
[1727773387453,0.57125,64124.0,64123.0,0.07875257]
[1727773387691,0.57125,64124.0,64123.0,0.30046121]
[1727773387901,0.57125,64124.0,64123.0,0.30246121]
[1727773388126,0.57125,64124.0,64123.0,0.30234077]
[1727773388351,0.57125,64124.0,64123.0,0.30034077]
[1727773388606,0.68957885,64124.0,64123.0,0.39386979]
[1727773388824,0.68957885,64124.0,64123.0,0.016646]
[1727773388825,0.92172585,64124.0,64123.0,0.016646]
[1727773389055,0.9598548,64124.0,64123.0,0.009646]
[1727773389283,1.07797852,64124.0,64123.0,0.009646]
[1727773389509,1.07797852,64124.0,64123.0,0.014646]
[1727773389778,1.07880152,64124.0,64123.0,0.014646]
[1727773390216,1.07880152,64124.0,64123.0,0.009646]
[1727773390478,1.07880152,64124.0,64123.0,0.002646]
[1727773390777,1.08280152,64124.0,64123.0,0.002646]
[1727773390934,1.08280152,64124.0,64123.0,0.001646]
[1727773391153,0.9606778,64124.0,64123.0,0.001646]
[1727773391447,1.08680152,64124.0,64123.0,0.002646]
[1727773391833,1.07880152,64124.0,64123.0,0.001646]
[1727773392282,1.08680152,64124.0,64123.0,0.003646]
[1727773392496,1.08680152,64124.0,64123.0,0.002646]
[1727773392928,1.08680152,64124.0,64123.0,0.003646]
[1727773393569,1.07880152,64124.0,64123.0,0.002646]
[1727773393820,1.08580152,64124.0,64123.0,0.003646]
[1727773407738,1.18580152,64124.0,64123.0,0.003646]
[1727773408560,1.18780152,64124.0,64123.0,0.003646]
[1727773408785,1.18580152,64124.0,64123.0,0.003646]
[1727773411300,1.21025073,64124.0,64123.0,0.003646]
[1727773411501,1.18580152,64124.0,64123.0,0.003646]
[1727773411911,1.18780152,64124.0,64123.0,0.003646]
[1727773412894,1.18580152,64124.0,64123.0,0.003646]
[1727773413518,1.18780152,64124.0,64123.0,0.003646]
[1727773414606,1.21225062,64124.0,64123.0,0.003646]
[1727773419818,1.3736974,64124.0,64123.0,0.003646]
[1727773420051,1.3736974,64124.0,64103.0,0.001648]
[1727773420052,0.38130472,64110.0,64103.0,0.001648]
[1727773420297,1.00061252,64110.0,64103.0,0.001648]
[1727773420782,0.155996,64104.0,64103.0,0.001648]
[1727773421029,0.73696972,64104.0,64103.0,0.001648]
[1727773421541,1.00282752,64104.0,64103.0,0.001648]
[1727773422768,1.00282752,64104.0,64103.0,0.002648]
[1727773423549,1.20448264,64104.0,64103.0,0.005648]
[1727773424202,1.20448264,64104.0,64103.0,0.002648]
[1727773424659,1.22992184,64104.0,64103.0,0.002648]
[1727773424878,1.24092184,64104.0,64103.0,0.003648]
[1727773425887,1.22992184,64104.0,64103.0,0.002648]
[1727773426318,1.39058099,64104.0,64103.0,0.003648]
[1727773427221,0.76530112,64104.0,64103.0,0.003648]
[1727773427443,1.03988264,64104.0,64103.0,0.003648]
[1727773435882,0.82175892,64104.0,64103.0,0.003648]
[1727773436095,0.93988264,64104.0,64103.0,0.085548]
[1727773436799,0.66530112,64104.0,64103.0,0.085548]
[1727773437011,0.640846,64104.0,64103.0,0.085548]
[1727773437445,0.48485,64104.0,64103.0,0.085548]
[1727773437666,0.48485,64104.0,64103.0,0.191848]
[1727773438330,0.48485,64104.0,64103.0,0.347846]
[1727773438555,0.46285,64104.0,64103.0,0.39251322]
[1727773438771,0.47485,64104.0,64103.0,0.39351322]
[1727773439331,0.46985,64104.0,64103.0,0.39351322]
[1727773439590,0.46985,64104.0,64103.0,0.346846]
[1727773439827,0.46385,64104.0,64103.0,0.40453431]
[1727773440074,0.46385,64104.0,64103.0,0.40553431]
[1727773440312,0.46285,64104.0,64103.0,0.39253431]
[1727773440587,0.46285,64104.0,64103.0,0.91883306]
[1727773440813,0.46285,64104.0,64103.0,0.98396081]
[1727773441833,0.46385,64104.0,64103.0,0.99796081]
[1727773442076,0.46485,64104.0,64103.0,1.01196081]
[1727773442331,0.46385,64104.0,64103.0,0.99716267]
[1727773442837,0.46485,64104.0,64103.0,1.01116267]
[1727773444182,0.46485,64104.0,64103.0,0.99716267]
[1727773444183,0.46385,64104.0,64103.0,0.99716267]
[1727773444442,0.46485,64104.0,64103.0,1.01116267]
[1727773444665,0.46485,64104.0,64103.0,0.99716267]
[1727773444883,0.46385,64104.0,64103.0,0.99716267]
[1727773445100,0.46485,64104.0,64103.0,1.01116267]
[1727773445537,0.46385,64104.0,64103.0,0.98316267]
[1727773445764,0.46285,64104.0,64103.0,0.98316267]
[1727773446004,0.46485,64104.0,64103.0,1.01116267]
[1727773446688,0.46485,64104.0,64103.0,1.11116267]
[1727773446959,0.46485,64104.0,64103.0,1.13416267]
[1727773447158,0.46485,64104.0,64103.0,1.13916267]
[1727773447598,0.46485,64104.0,64103.0,1.14116267]
[1727773447828,0.46485,64104.0,64103.0,1.56271322]
[1727773448062,0.46485,64104.0,64103.0,1.55571322]
[1727773448336,0.46485,64104.0,64103.0,1.13616267]
[1727773448570,0.46485,64104.0,64103.0,1.13416267]
[1727773449478,0.46485,64104.0,64103.0,1.0942659]
[1727773449714,0.46485,64104.0,64103.0,1.27601723]
[1727773450401,0.46485,64104.0,64103.0,1.27766323]
[1727773451312,0.46485,64104.0,64103.0,1.04650867]
[1727773451313,0.18062285,64104.0,64103.0,1.04650867]
[1727773451541,0.000823,64120.0,64119.0,0.15596]
[1727773451779,0.000823,64120.0,64119.0,0.3913178]
[1727773452865,0.000823,64120.0,64119.0,0.3973178]
[1727773453075,0.000823,64120.0,64119.0,0.24486]
[1727773454930,0.108023,64120.0,64119.0,0.0889]
[1727773456011,0.000823,64120.0,64119.0,0.60406913]
[1727773456896,0.000823,64120.0,64119.0,0.4243178]
[1727773457373,0.000823,64120.0,64119.0,0.60406913]
[1727773459328,0.000823,64120.0,64119.0,0.24486]
[1727773460023,0.000823,64120.0,64119.0,0.24797881]
[1727773461340,0.000823,64120.0,64119.0,0.40443661]
[1727773461565,0.000823,64120.0,64119.0,0.4013178]
[1727773466436,0.000823,64120.0,64119.0,0.4075668]
[1727773466658,0.000823,64124.0,64123.0,0.33805]
[1727773466874,0.000823,64124.0,64123.0,0.4945078]
[1727773467097,0.000823,64124.0,64123.0,0.3945078]
[1727773467911,0.000823,64124.0,64123.0,0.51240989]
[1727773468144,0.000823,64124.0,64123.0,0.64040989]
[1727773468385,0.000824,64126.0,64125.0,0.255945]
[1727773468624,0.000824,64126.0,64125.0,0.51542104]
[1727773468850,0.000824,64126.0,64125.0,0.58195032]
[1727773469071,0.000824,64126.0,64125.0,0.5123028]
[1727773469534,0.000824,64126.0,64125.0,0.58195032]